Cogmind - Beta 13 @@@ ROGUE MODE // 2024.05.01 @ 18:35:48 Player: sve9 Result: Escaped! Performance ------------- Evolutions (9) 4500 Regions Visited (22) 4400 Robots Destroyed (125) 625 Value Destroyed (3771) 3771 Prototype IDs (59) 1180 Alien Tech Used (1) 200 Bonus (6322) 6322 TOTAL SCORE: 20998 Bonus ------- High Alert Combat Kills 22 Met Data Miner 300 Met Warlord at Base 500 MAIN.C Attacked Warlord 500 Met Warlord at Research 2000 Win 3000 Cogmind --------- Core Integrity 1600/1600 Matter 202/300 Energy 113/150 System Corruption 0% Temperature Cool (5) Movement Flying (23) Location To Epsilon Eridani Parts ------- > --- POWER (1) -------- Micro Antimatter Reactor > --- PROPULSION (6) --- Cooled Nuclear Pulse Thruster Diametric Drive Q-thruster Improved Diametric Drive Improved Diametric Drive Improved Q-thruster > --- UTILITY (16) ----- Advanced Heat Sink Medium Storage Unit Gravity Neutralizer Machine Analyzer Triangulator Spectral Analyzer Long-range Sensor Array Advanced Signal Interpreter Experimental Propulsion Shielding Improved Utility Shielding Layered Light Armor Plating Centrium Light Armor Plating Hacking Suite Advanced Hacking Suite Advanced Hacking Suite Advanced System Shield > --- WEAPON (2) ------- Particle Cleaver Enhanced Force Lance > --- INVENTORY (10) --- Light Antimatter Reactor Cooled Nuclear Pulse Thruster Improved Diametric Drive Medium Storage Unit Advanced Sensor Array Improved Cloaking Device Layered Light Armor Plating Transdimensional Reconstructor Micro-nuke Launcher Peak State ------------ > --- POWER ------------ Micro Antimatter Reactor > --- PROPULSION ------- Cooled Nuclear Pulse Thruster Diametric Drive Q-thruster Improved Diametric Drive Improved Diametric Drive Improved Q-thruster > --- UTILITY ---------- Advanced Heat Sink Medium Storage Unit Gravity Neutralizer Machine Analyzer Triangulator Spectral Analyzer Long-range Sensor Array Advanced Signal Interpreter Experimental Propulsion Shielding Improved Utility Shielding Layered Light Armor Plating Centrium Light Armor Plating Hacking Suite Advanced Hacking Suite Advanced Hacking Suite Advanced System Shield > --- WEAPON ----------- Particle Cleaver Enhanced Force Lance > --- INVENTORY -------- Light Antimatter Reactor Cooled Nuclear Pulse Thruster Improved Diametric Drive Advanced Sensor Array Improved Cloaking Device Layered Light Armor Plating Transdimensional Reconstructor Micro-nuke Launcher [Rating: 166] Favorites ----------- Power Fission Core Engine Ion Engine Power Core Fission Core Reactor Micro Antimatter Reactor Propulsion Cooled Nuclear Pulse Thruster Treads Improved Treads Leg Carbon-fiber Leg Hover Unit Aerolev Unit Flight Unit Cooled Nuclear Pulse Thruster Utility Advanced Hacking Suite Device Advanced Sensor Array Storage Medium Storage Unit Processor Advanced Signal Interpreter Hackware Advanced Hacking Suite Protection Layered Light Armor Plating Weapon Greatsword Energy Gun Subdweller Laser Energy Cannon Subdweller Beam Cannon Ballistic Gun Shotgun Launcher Grenade Launcher Impact Weapon Makeshift Hammer Slashing Weapon Greatsword Piercing Weapon Enhanced Force Lance Build | -11 -10 -10 -8 -7 -6 -6 -6 -6 -5 -5 -5 -5 -5 -4 -4 -4 -4 -4 -3 -3 -2 -1 ------- Run | Yrd Mat Sub Mat Fac Fac Low Low Dat Pro Fac Upp Upp Zhi Pro Fac Upp Upp War Pro Res Res Acc Slots Evolved 18 | . . . 4 2 2 . . . . 2 . . . . 2 . . . . 2 2 2 Power . | . . . . . . . . . . . . . . . . . . . . . . . Propulsion 4 | . . . 1 . . . . . . 1 . . . . . . . . . 1 1 . Utility 14 | . . . 3 2 2 . . . . 1 . . . . 2 . . . . 1 1 2 Weapon . | . . . . . . . . . . . . . . . . . . . . . . . Parts Attached 206 | 7 13 16 34 21 27 4 1 . 4 15 1 3 4 1 7 2 1 3 3 21 14 4 Power 21 | 1 4 . 4 2 1 . . . . 3 . . . . . . 1 . . 2 3 . Engine 8 | 1 4 . 2 . . . . . . 1 . . . . . . . . . . . . Core 8 | . . . 2 2 1 . . . . 2 . . . . . . 1 . . . . . Reactor 5 | . . . . . . . . . . . . . . . . . . . . 2 3 . Propulsion 52 | 2 2 3 13 6 6 1 . . 1 3 1 1 . . 1 . . 1 . 7 4 . Treads 7 | 2 2 3 . . . . . . . . . . . . . . . . . . . . Leg 12 | . . . 12 . . . . . . . . . . . . . . . . . . . Wheel . | . . . . . . . . . . . . . . . . . . . . . . . Hover 1 | . . . 1 . . . . . . . . . . . . . . . . . . . Flight 32 | . . . . 6 6 1 . . 1 3 1 1 . . 1 . . 1 . 7 4 . Utility 90 | 2 4 4 11 12 15 1 1 . 1 9 . . 4 . 6 . . 2 1 9 4 4 Device 25 | 1 . . 4 3 6 . . . . 1 . . . . 2 . . . 1 5 1 1 Storage 4 | 1 1 . . 1 . . . . . . . . . . . . . . . . . 1 Processor 15 | . . . 4 1 4 1 . . . 2 . . . . . . . . . 1 1 1 Hackware 16 | . . . 1 3 3 . . . . 4 . . . . 2 . . 1 . . 1 1 Protection 30 | . 3 4 2 4 2 . 1 . 1 2 . . 4 . 2 . . 1 . 3 1 . Artifact . | . . . . . . . . . . . . . . . . . . . . . . . Weapon 43 | 2 3 9 6 1 5 2 . . 2 . . 2 . 1 . 2 . . 2 3 3 . Energy Gun 3 | 1 . 1 1 . . . . . . . . . . . . . . . . . . . Energy Cannon 1 | . . . 1 . . . . . . . . . . . . . . . . . . . Ballistic Gun 11 | 1 3 5 2 . . . . . . . . . . . . . . . . . . . Ballistic Cannon . | . . . . . . . . . . . . . . . . . . . . . . . Launcher 16 | . . 3 . . 1 1 . . 1 . . 2 . 1 . 2 . . 2 2 1 . Special Weapon . | . . . . . . . . . . . . . . . . . . . . . . . Impact Weapon 4 | . . . . . 2 1 . . 1 . . . . . . . . . . . . . Slashing Weapon 6 | . . . 2 1 2 . . . . . . . . . . . . . . . 1 . Piercing Weapon 2 | . . . . . . . . . . . . . . . . . . . . 1 1 . Special Melee Weapon . | . . . . . . . . . . . . . . . . . . . . . . . Unidentified Prototypes 18 | . . . 1 . 4 . . . . 1 . . 2 . . . . 2 . 4 4 . Parts Lost 40 | . . 9 9 2 5 1 . . 2 . . 1 . . 3 3 . . 2 3 . . Power 6 | . . 1 2 . 1 . . . . . . . . . . 1 . . . 1 . . Propulsion 9 | . . 2 3 . 1 1 . . 1 . . 1 . . . . . . . . . . Utility 17 | . . 3 1 2 2 . . . 1 . . . . . 3 1 . . 2 2 . . Weapon 8 | . . 3 3 . 1 . . . . . . . . . . 1 . . . . . . Highest Loss Streak 3 | . . 2 3 1 3 1 . . 2 . . 1 . . 2 3 . . 1 3 . . To Critical Strikes 1 | . . . . . . . . . . . . . . . . 1 . . . . . . Average Slot Usage (%) 91 | . 99 93 88 82 91 85 93 93 92 93 94 94 94 94 90 88 84 86 92 89 96 99 Engine 3 | . 13 8 7 2 . . . . . . . . . . . . . . . . . . Core 2 | . . . . 4 5 6 6 6 6 5 5 5 5 5 5 5 5 5 5 . . . Treads 5 | . 28 28 1 . . . . . . . . . . . . . . . . . . . Leg 5 | . . . 25 9 . . . . . . . . . . . . . . . . . . Flight 13 | . . . . 11 20 19 20 20 19 23 23 23 23 23 21 21 21 21 21 22 26 24 Device 8 | . . . 8 2 12 13 13 13 13 11 11 11 11 11 13 13 10 10 12 18 16 15 Storage 7 | . 14 14 9 5 5 6 6 6 6 5 5 5 5 5 5 5 5 5 5 4 4 4 Processor 10 | . . . 13 17 13 19 20 20 20 13 11 11 11 11 6 5 5 5 5 8 8 12 Hackware 10 | . . . 3 12 23 13 13 13 10 11 17 17 17 17 22 21 21 22 25 10 12 15 Protection 9 | . 13 13 8 5 . . 6 6 8 13 11 11 11 11 10 10 10 11 12 12 17 16 Energy Gun 1 | . . 8 1 . . . . . . . . . . . . . . . . . . . Ballistic Gun 4 | . 27 14 2 . . . . . . . . . . . . . . . . . . . Impact Weapon 1 | . . . . . . 6 6 6 5 5 5 5 5 5 5 5 5 5 5 . . . Slashing Weapon 2 | . . . 6 5 5 . . . . . . . . . . . . . . . . 4 Naked Turns . | . . . . . . . . . . . . . . . . . . . . . . . Heaviest Build 48 | 12 37 39 43 48 30 31 26 26 30 32 29 29 30 30 31 30 24 28 28 45 45 45 Greatest Support 56 | 40 46 46 46 44 36 30 30 30 36 48 33 45 33 45 45 45 33 34 43 50 56 56 Greatest Overweight (x) 2 | . . 1 1 2 1 1 . . . 2 . . . 2 . . . . . 1 . . Average Overweight (x) . | . . . . . . . . . . . . . . . . . . . . . . . Largest Inventory Capacity 15 | 8 15 15 15 15 10 10 10 10 10 10 10 10 10 10 10 10 10 10 10 10 10 10 Average Capacity 11 | 6 12 15 15 12 10 10 10 10 10 10 10 10 10 10 10 10 10 10 10 10 10 10 Most Carried 15 | 6 14 14 15 15 10 10 10 10 10 10 10 10 10 10 10 10 9 10 10 10 10 9 Average Carried 10 | 3 11 12 13 12 9 9 8 10 9 9 9 9 9 9 9 9 8 9 9 9 9 8 Final Capacity 15 | 8 15 15 15 10 10 10 10 10 10 10 10 10 10 10 10 10 10 10 10 10 10 10 Final Carried 15 | 6 14 12 15 10 9 9 10 10 8 10 10 9 10 10 10 9 9 10 10 10 10 9 Class Distribution -------------------- 26% | Hacker-Sprinter 22% | Mutant 10% | Hacker-Ninja 9% | Gladiator 8% | Hacker-Scout 4% | Scavenger-Gladiator 3% | Wizard-Sprinter 3% | Sprinter Dominant Class ---------------- Mutant | -10/Materials Mutant | -10/Subcaves Gladiator | -8/Materials Hacker-Sprinter | -7/Factory Hacker-Sprinter | -6/Factory Hacker-Sprinter | -6/Lower Caves Hacker-Sprinter | -6/Lower Caves Hacker-Sprinter | -6/Data Miner Hacker-Sprinter | -5/Proximity Caves Hacker-Scout | -5/Factory Hacker-Scout | -5/Upper Caves Hacker-Scout | -5/Upper Caves Hacker-Scout | -5/Zhirov Hacker-Scout | -4/Proximity Caves Wizard-Sprinter | -4/Factory Hacker-Sprinter | -4/Upper Caves Hacker-Sprinter | -4/Upper Caves Hacker-Sprinter | -4/Warlord Wizard-Sprinter | -3/Proximity Caves Hacker-Ninja | -3/Research Hacker-Ninja | -2/Research Hacker-Ninja | -1/Access Resources | -11 -10 -10 -8 -7 -6 -6 -6 -6 -5 -5 -5 -5 -5 -4 -4 -4 -4 -4 -3 -3 -2 -1 ----------- Run | Yrd Mat Sub Mat Fac Fac Low Low Dat Pro Fac Upp Upp Zhi Pro Fac Upp Upp War Pro Res Res Acc Matter Collected 3043 | 233 364 188 576 205 303 78 28 . 28 255 20 7 . 82 37 28 23 115 72 281 120 . Remotely . | . . . . . . . . . . . . . . . . . . . . . . . Salvage Created 4214 | 88 479 244 1759 516 386 17 . . . 114 . 48 . 82 37 67 . . 17 193 167 . Parts 266 | 7 39 13 109 31 23 2 . . . 2 . 6 . 3 . 6 . . 3 13 9 . Haulers Intercepted 11 | . 2 . 6 1 1 . . . . . . . . . . . . . . . 1 . Recyclers Shooed 5 | . . . 5 . . . . . . . . . . . . . . . . . . . Parts Field Recycled . | . . . . . . . . . . . . . . . . . . . . . . . Retrieved Matter . | . . . . . . . . . . . . . . . . . . . . . . . Parts Self-Destructed 12 | . . . . . . 1 . . . . . 3 . 3 . 4 . . 1 . . . Prevented 2 | . . . . . . . . . . . . 2 . . . . . . . . . . Kills | -11 -10 -10 -8 -7 -6 -6 -6 -6 -5 -5 -5 -5 -5 -4 -4 -4 -4 -4 -3 -3 -2 -1 ------- Run | Yrd Mat Sub Mat Fac Fac Low Low Dat Pro Fac Upp Upp Zhi Pro Fac Upp Upp War Pro Res Res Acc Combat Hostiles Destroyed 86 | . 13 8 23 7 7 3 . . . . . 4 . 5 . 9 . . 2 5 . . Melee 27 | . . . 14 7 3 . . . . . . . . . . 1 . . . 2 . . Guns 25 | . 13 6 6 . . . . . . . . . . . . . . . . . . . Cannons 2 | . . . 2 . . . . . . . . . . . . . . . . . . . AOE 31 | . . 2 . . 4 3 . . . . . 4 . 5 . 8 . . 2 3 . . Classes Destroyed 15 | 2 5 1 4 2 1 . . . . . . . . . . . . . . . . . Worker 5 | . . . 4 . 1 . . . . . . . . . . . . . . . . . Builder 1 | . . . . . 1 . . . . . . . . . . . . . . . . . Tunneler 2 | 1 . . 1 . . . . . . . . . . . . . . . . . . . Hauler 11 | . 2 . 6 1 1 . . . . . . . . . . . . . . . 1 . Recycler 2 | 1 . . 1 . . . . . . . . . . . . . . . . . . . Mechanic 2 | . . . . 1 . . . . . . . . . . . . . . . . 1 . Operator 5 | . 1 . . . 1 . . . . 2 . . . . . . . . . 1 . . Watcher 11 | . 1 . 3 1 1 . . . . 3 . . . . 1 . . . . . 1 . Swarmer 38 | . 5 . . . 7 3 . . . . . 4 . 5 . 9 . . 2 3 . . Grunt 25 | . 8 . 14 3 . . . . . . . . . . . . . . . . . . Brawler 1 | . . . 1 . . . . . . . . . . . . . . . . . . . Duelist 1 | . . . 1 . . . . . . . . . . . . . . . . . . . Sentry 9 | . . . 7 2 . . . . . . . . . . . . . . . . . . Programmer 4 | . . . . 2 . . . . . . . . . . . . . . . 2 . . Subdweller 8 | . . 8 . . . . . . . . . . . . . . . . . . . . Best Kill Streak 6 | 2 3 3 6 3 6 3 . . . 1 . 4 . 5 1 5 . . 2 3 1 . Combat Bots Only 5 | . 3 3 5 3 4 3 . . . . . 4 . 5 . 5 . . 2 3 . . Max Kills in Single Turn 5 | 1 1 1 1 1 3 2 . . . 1 . 3 . 5 1 3 . . 1 2 1 . Gunslinging . | . . . . . . . . . . . . . . . . . . . . . . . Exploded 5 | . . 1 . . 2 2 . . . . . 3 . 5 . 3 . . 1 2 . . Melee 1 | . . . 1 1 1 . . . . . . . . . . 1 . . . 1 . . Uniques/NPCs Destroyed . | . . . . . . . . . . . . . . . . . . . . . . . Combat | -11 -10 -10 -8 -7 -6 -6 -6 -6 -5 -5 -5 -5 -5 -4 -4 -4 -4 -4 -3 -3 -2 -1 -------- Run | Yrd Mat Sub Mat Fac Fac Low Low Dat Pro Fac Upp Upp Zhi Pro Fac Upp Upp War Pro Res Res Acc Hostile Shots Fired 484 | . 55 41 125 55 52 9 . . 3 18 . 11 . 9 18 31 2 . 10 20 23 2 Missed 188 | . 13 9 33 29 25 5 . . . 10 . 4 . 6 12 13 1 . 4 9 15 . Damage Taken 6021 | . 436 1265 1467 291 634 107 . . 160 158 . 117 . 45 306 323 21 . 169 284 188 50 Core 906 | . 48 194 208 77 181 16 . . . . . 12 . 17 17 44 21 . 24 24 23 . Absorbed by Shields . | . . . . . . . . . . . . . . . . . . . . . . . Redirected to Shielding 215 | . . . . . . . . . 47 39 . 11 . . . 26 . . . 35 57 . Regen/Repaired (Parts) 111 | . . . 51 . 42 . . . . 18 . . . . . . . . . . . . Core Remaining (%) 81 | 100 . 3 62 89 . . . . 76 . . . . 97 . . . . 90 98 98 100 Volleys Fired 184 | 2 47 41 66 . 4 4 . . 3 . . 3 . 1 . 6 . . 3 3 1 . Largest 2 | 2 2 2 2 . 1 1 . . 1 . . 1 . 1 . 1 . . 1 1 1 . Hottest 100 | 70 43 90 100 . 33 39 . . 39 . . 39 . 39 . 39 . . 49 49 49 . Shots Fired 298 | 4 82 65 119 . 4 4 . . 3 . . 3 . 1 . 6 . . 3 3 1 . Gun 248 | 4 82 55 107 . . . . . . . . . . . . . . . . . . . Cannon 12 | . . . 12 . . . . . . . . . . . . . . . . . . . Launcher 38 | . . 10 . . 4 4 . . 3 . . 3 . 1 . 6 . . 3 3 1 . Special . | . . . . . . . . . . . . . . . . . . . . . . . Kinetic 183 | 2 82 35 64 . . . . . . . . . . . . . . . . . . . Thermal 77 | 2 . 20 55 . . . . . . . . . . . . . . . . . . . Explosive 38 | . . 10 . . 4 4 . . 3 . . 3 . 1 . 6 . . 3 3 1 . Electromagnetic . | . . . . . . . . . . . . . . . . . . . . . . . Robot Hit Streak 16 | 3 10 10 16 . 1 2 . . . . . . . . . 2 . . 1 2 . . Robot Miss Streak 3 | . 3 1 2 . 2 2 . . . . . . . 1 . 2 . . 1 1 . . Penetration Max . | . . . . . . . . . . . . . . . . . . . . . . . Secondary Targets 2 | . . 1 1 . . . . . . . . . . . . . . . . . . . Max Gunslinging Chain 1 | . . 1 1 . . . . . . . . . . . . . . . . . . . Shots Hit Robots 293 | 3 55 39 145 20 9 2 . . . 5 . . . . 1 4 . . 1 5 4 . Core Hits 170 | 3 32 17 54 9 14 3 . . . 1 . 4 . 6 . 11 . . 5 8 3 . Critical Kills . | . . . . . . . . . . . . . . . . . . . . . . . Critical Parts Destroyed 1 | . . . . . . . . . . . . . . . . . . . . 1 . . Critical Strikes 14 | . . . 8 3 . . . . . . . . . . . . . . . 1 2 . Burn 4 | . . . 4 . . . . . . . . . . . . . . . . . . . Smash 1 | . . . . . . . . . . . . . . . . . . . . 1 . . Sever 7 | . . . 4 3 . . . . . . . . . . . . . . . . . . Impale 2 | . . . . . . . . . . . . . . . . . . . . . 2 . Melee Attacks 337 | . . . 55 32 89 5 . . . 48 . . . . 37 1 . 8 . 36 19 7 Impact 119 | . . . . . 12 5 . . . 48 . . . . 37 1 . 8 . 8 . . Slashing 179 | . . . 55 32 77 . . . . . . . . . . . . . . . 11 4 Piercing 39 | . . . . . . . . . . . . . . . . . . . . 28 8 3 Sneak Attacks 16 | . . . 8 3 2 . . . . . . . . . . . . . . . 3 . Combat Hostiles . | . . . . . . . . . . . . . . . . . . . . . . . Follow-up Attacks . | . . . . . . . . . . . . . . . . . . . . . . . Damage Inflicted 12411 | 34 704 947 4386 1273 1204 414 . . . 300 . 366 . 288 42 1076 . . 338 587 452 . Guns 2277 | 34 704 540 999 . . . . . . . . . . . . . . . . . . . Cannons 310 | . . . 310 . . . . . . . . . . . . . . . . . . . Explosions 3659 | . . 407 . . 502 414 . . . . . 366 . 288 . 1020 . . 338 324 . . Melee 6163 | . . . 3075 1273 702 . . . . 300 . . . . 42 56 . . . 263 452 . Ramming 2 | . . . 2 . . . . . . . . . . . . . . . . . . . Kinetic 1507 | 9 704 374 420 . . . . . . . . . . . . . . . . . . . Thermal 1080 | 25 . 166 889 . . . . . . . . . . . . . . . . . . . Explosive 3659 | . . 407 . . 502 414 . . . . . 366 . 288 . 1020 . . 338 324 . . Electromagnetic . | . . . . . . . . . . . . . . . . . . . . . . . Impact 477 | . . . . . . . . . . 300 . . . . 42 56 . . . 79 . . Slashing 5050 | . . . 3075 1273 702 . . . . . . . . . . . . . . . . . Piercing 636 | . . . . . . . . . . . . . . . . . . . . 184 452 . Highest Corruption 9 | . . 7 . 1 9 9 1 1 6 . . . . . 4 4 4 4 . 1 . . Average Corruption 3 | . . 7 . 1 4 1 1 1 2 . . . . . 3 4 4 4 . 1 . . Corruption Purged . | . . . . . . . . . . . . . . . . . . . . . . . Corruption Blocked 36 | . . . . . . . . . . 8 . . . . . . . . . . 28 . Effects 78 | . . 20 . . 32 2 1 1 6 . . . . . 11 . 2 . . 3 . . Message Errors 16 | . . 5 . . 7 . . . 1 . . . . . 1 . . . . 2 . . Matter Fused 19 | . . 5 . . 10 . 1 . 1 . . . . . 1 . . . . 1 . . Heat Flow Errors 7 | . . 1 . . 1 1 . 1 1 . . . . . 1 . 1 . . . . . Energy Discharges 12 | . . 3 . . 7 . . . . . . . . . 2 . . . . . . . Parts Rejected 2 | . . 1 . . 1 . . . . . . . . . . . . . . . . . Parts Fused 2 | . . . . . 1 . . . . . . . . . 1 . . . . . . . Data Loss (minor) 14 | . . 3 . . 3 1 . . 1 . . . . . 5 . 1 . . . . . Data Loss (major) 3 | . . 1 . . . . . . 2 . . . . . . . . . . . . . Alerts 2 | . . . . . 2 . . . . . . . . . . . . . . . . . Weapon Failures 1 | . . 1 . . . . . . . . . . . . . . . . . . . . Overload Shots . | . . . . . . . . . . . . . . . . . . . . . . . Overflow Damage 1030 | . . 7 199 146 287 4 . . . 111 . 26 . . 18 69 . . . 145 18 . Projectiles . | . . . . . . . . . . . . . . . . . . . . . . . Explosions 176 | . . 7 . . 4 4 . . . . . 26 . . . 69 . . . 66 . . Melee 854 | . . . 199 146 283 . . . . 111 . . . . 18 . . . . 79 18 . Knockbacks 2 | . . . . . . . . . . 2 . . . . . . . . . . . . Impact 2 | . . . . . . . . . . 2 . . . . . . . . . . . . Kinetic . | . . . . . . . . . . . . . . . . . . . . . . . Secondary . | . . . . . . . . . . . . . . . . . . . . . . . Self-Inflicted Damage 275 | . . 205 . . . 43 . . . . . . . . . 27 . . . . . . Shots 11 | . . 8 . . . 2 . . . . . . . . . 1 . . . . . . Rammed 1 | . . . . . . . . . . . . . . . . . . . . 1 . . Targets Rammed 2 | . . . 1 . . . . . . . . . . . . . . . . 1 . . Kicked 1 | . . . 1 . . . . . . . . . . . . . . . . . . . Crushed . | . . . . . . . . . . . . . . . . . . . . . . . Highest Temperature 314 | 40 16 93 198 11 135 159 . 158 141 219 . 140 . 155 273 154 193 . 79 282 314 8 Average Temperature 49 | 20 6 48 52 2 59 86 . 79 60 70 . 56 . 93 86 78 133 . 39 43 60 3 Received Heat Transfer 1408 | . 159 162 801 96 33 . . . 30 36 . 18 . . . 46 . . 9 9 . 9 Effects 3 | . . . . . . . . . . . . . . . 1 . . . . . 2 . Energy Bleed 2 | . . . . . . . . . . . . . . . 1 . . . . . 1 . Short Circuit 1 | . . . . . . . . . . . . . . . . . . . . . 1 . Siege Activations . | . . . . . . . . . . . . . . . . . . . . . . . Robots Corrupted . | . . . . . . . . . . . . . . . . . . . . . . . Combat Hostiles . | . . . . . . . . . . . . . . . . . . . . . . . Parts Fried 14 | . . . . . . . . . . 8 . . . . 3 . . . . 3 . . Impact Corruptions 9 | . . . . . . . . . . 5 . . . . 1 . . . . 3 . . Robots Melted 1 | . . . 1 . . . . . . . . . . . . . . . . . . . Combat Hostiles 1 | . . . 1 . . . . . . . . . . . . . . . . . . . Parts Melted 2 | . . 1 1 . . . . . . . . . . . . . . . . . . . Heat Transferred 2285 | 74 . 200 2011 . . . . . . . . . . . . . . . . . . . Parts Sabotaged . | . . . . . . . . . . . . . . . . . . . . . . . Parts Stolen . | . . . . . . . . . . . . . . . . . . . . . . . Parts Stripped . | . . . . . . . . . . . . . . . . . . . . . . . Power Chain Reactions . | . . . . . . . . . . . . . . . . . . . . . . . Alert | -11 -10 -10 -8 -7 -6 -6 -6 -6 -5 -5 -5 -5 -5 -4 -4 -4 -4 -4 -3 -3 -2 -1 ------- Run | Yrd Mat Sub Mat Fac Fac Low Low Dat Pro Fac Upp Upp Zhi Pro Fac Upp Upp War Pro Res Res Acc Peak Influence 466 | 10 290 . 466 206 300 . . . . 300 . . . . 120 . . . . 312 345 353 Initial 206 | . 6 . . 206 7 . . . . . . . . . 78 . . . . 36 114 206 Average 128 | 3 96 . 214 113 117 . . . . 68 . . . . 49 . . . . 201 106 279 Maximum Alert Level 2 | . 1 . 2 1 1 . . . . 1 . . . . . . . . . 1 1 1 Low Security (%) 76 | 100 94 . 49 58 90 . . . . 94 . . . . 100 . . . . 58 88 . Level 1 18 | . 5 . 27 41 9 . . . . 5 . . . . . . . . . 41 11 100 Level 2 4 | . . . 22 . . . . . . . . . . . . . . . . . . . Level 3 . | . . . . . . . . . . . . . . . . . . . . . . . Level 4 . | . . . . . . . . . . . . . . . . . . . . . . . Level 5 . | . . . . . . . . . . . . . . . . . . . . . . . High Security . | . . . . . . . . . . . . . . . . . . . . . . . Max Security . | . . . . . . . . . . . . . . . . . . . . . . . Squads Dispatched 35 | . 3 . . 7 8 . . . . 8 . . . . 4 . . . . 3 1 1 Investigation 23 | . 1 . . 4 6 . . . . 5 . . . . 2 . . . . 3 1 1 Extermination 4 | . . . . 2 1 . . . . 1 . . . . . . . . . . . . Reinforcement 8 | . 2 . . 1 1 . . . . 2 . . . . 2 . . . . . . . Assault . | . . . . . . . . . . . . . . . . . . . . . . . Garrison . | . . . . . . . . . . . . . . . . . . . . . . . Intercept . | . . . . . . . . . . . . . . . . . . . . . . . Searches Triggered . | . . . . . . . . . . . . . . . . . . . . . . . Construction Impeded . | . . . . . . . . . . . . . . . . . . . . . . . Haulers Reinforced 1 | . . . . 1 . . . . . . . . . . . . . . . . . . Active Scanning Responses . | . . . . . . . . . . . . . . . . . . . . . . . Cargo Convoy Interrupts 1 | . . . . . . . . . . 1 . . . . . . . . . . . . Stealth | -11 -10 -10 -8 -7 -6 -6 -6 -6 -5 -5 -5 -5 -5 -4 -4 -4 -4 -4 -3 -3 -2 -1 --------- Run | Yrd Mat Sub Mat Fac Fac Low Low Dat Pro Fac Upp Upp Zhi Pro Fac Upp Upp War Pro Res Res Acc Distress Signals 18 | . . . 3 . 2 . . . . 3 . . . . 2 . . . . 1 7 . Communications Jammed . | . . . . . . . . . . . . . . . . . . . . . . . Distress Signals . | . . . . . . . . . . . . . . . . . . . . . . . Times Spotted 292 | . 23 8 38 14 38 3 . . 3 37 2 12 . 14 20 17 3 . 5 16 32 7 Peak Tracking Total 15 | . 3 3 6 5 9 3 . . 3 13 . 10 . 8 12 9 3 . 5 6 15 4 Tactical Retreats 51 | . 1 . 7 2 11 . . . . 9 . . . 1 7 1 1 . 1 5 3 2 Traps | -11 -10 -10 -8 -7 -6 -6 -6 -6 -5 -5 -5 -5 -5 -4 -4 -4 -4 -4 -3 -3 -2 -1 ------- Run | Yrd Mat Sub Mat Fac Fac Low Low Dat Pro Fac Upp Upp Zhi Pro Fac Upp Upp War Pro Res Res Acc Traps Triggered 14 | . 4 4 . . 1 . . . . 3 . . . . 2 . . . . . . . Indirectly . | . . . . . . . . . . . . . . . . . . . . . . . Trap Hack Attempts . | . . . . . . . . . . . . . . . . . . . . . . . Triggered . | . . . . . . . . . . . . . . . . . . . . . . . Disarmed . | . . . . . . . . . . . . . . . . . . . . . . . Reprogrammed . | . . . . . . . . . . . . . . . . . . . . . . . Reused . | . . . . . . . . . . . . . . . . . . . . . . . Traps Extracted . | . . . . . . . . . . . . . . . . . . . . . . . Installed . | . . . . . . . . . . . . . . . . . . . . . . . Triggered 5 | . . . . . . . . . . 1 . 1 . . . . 2 1 . . . . Machines | -11 -10 -10 -8 -7 -6 -6 -6 -6 -5 -5 -5 -5 -5 -4 -4 -4 -4 -4 -3 -3 -2 -1 ---------- Run | Yrd Mat Sub Mat Fac Fac Low Low Dat Pro Fac Upp Upp Zhi Pro Fac Upp Upp War Pro Res Res Acc Machines Disabled 2 | . . 1 . . 1 . . . . . . . . . . . . . . . . . Max in Single Turn 1 | . . 1 . . 1 . . . . . . . . . . . . . . . . . Garrison Access 12 | . . . 1 2 3 . . . . 2 . . . . 2 . . . . 1 1 . Machines Repaired . | . . . . . . . . . . . . . . . . . . . . . . . Machines Dismantled . | . . . . . . . . . . . . . . . . . . . . . . . Machines Sabotaged . | . . . . . . . . . . . . . . . . . . . . . . . Overloaded Fab Kills . | . . . . . . . . . . . . . . . . . . . . . . . Hacking | -11 -10 -10 -8 -7 -6 -6 -6 -6 -5 -5 -5 -5 -5 -4 -4 -4 -4 -4 -3 -3 -2 -1 --------- Run | Yrd Mat Sub Mat Fac Fac Low Low Dat Pro Fac Upp Upp Zhi Pro Fac Upp Upp War Pro Res Res Acc Machines Accessed 121 | . 7 2 15 15 21 1 . 4 . 21 1 . 8 . 13 . . 2 . 4 3 4 Terminals 71 | . 7 . 12 8 13 . . . . 12 . . . . 10 . . . . 3 2 4 Fabricators 15 | . . . . 4 4 . . . . 6 . . . . 1 . . . . . . . Repair Stations 4 | . . . 1 1 1 . . . . 1 . . . . . . . . . . . . Recycling Units . | . . . . . . . . . . . . . . . . . . . . . . . Scanalyzers 1 | . . . 1 . . . . . . . . . . . . . . . . . . . Garrison Access 12 | . . . 1 2 3 . . . . 2 . . . . 2 . . . . 1 1 . Total Hacks 416 | . 29 13 46 43 69 1 . 29 . 45 1 . 47 . 53 . . 8 . 12 9 11 Successful 262 | . 14 13 25 15 35 1 . 29 . 29 1 . 47 . 32 . . 8 . 3 3 7 Failed 154 | . 15 . 21 28 34 . . . . 16 . . . . 21 . . . . 9 6 4 Catastrophic 35 | . 2 . 9 7 7 . . . . 3 . . . . 2 . . . . 2 2 1 Database Lockouts . | . . . . . . . . . . . . . . . . . . . . . . . Manual 161 | . 28 . 23 10 40 . . . . 12 . . . . 36 . . 1 . 5 2 4 Terminals 242 | . 29 . 31 25 51 . . . . 29 . . . . 49 . . . . 10 7 11 Fabricators 34 | . . . . 9 11 . . . . 12 . . . . 2 . . . . . . . Repair Stations 10 | . . . 2 3 3 . . . . 2 . . . . . . . . . . . . Recycling Units . | . . . . . . . . . . . . . . . . . . . . . . . Scanalyzers 11 | . . . 11 . . . . . . . . . . . . . . . . . . . Garrison Access 20 | . . . 2 6 4 . . . . 2 . . . . 2 . . . . 2 2 . Terminal Hacks 175 | . 3 13 7 4 20 1 . 29 . 11 1 . 47 . 24 . . 8 . 1 1 5 Record 70 | . . 12 . . 2 . . 11 . 1 . . 35 . 1 . . 8 . . . . Part Schematic 22 | . . . 1 . 3 . . 11 . 1 . . 4 . 2 . . . . . . . Robot Schematic 4 | . . . . . . . . 4 . . . . . . . . . . . . . . Robot Analysis 4 | . . . . . . . . . . . . . 4 . . . . . . . . . Prototype ID Bank 11 | . . . . . 1 . . 3 . . . . 4 . 2 . . . . . . 1 Open Door 3 | . . . . . . 1 . . . . 1 . . . . . . . . . . 1 Open DSF 1 | . . . . . . . . . . 1 . . . . . . . . . . . . Level Access Points 6 | . . . 1 1 1 . . . . 1 . . . . 1 . . . . . . 1 Branch Access Points 5 | . 1 . 1 . 1 . . . . 1 . . . . 1 . . . . . . . Terminal Index 4 | . . . . . 1 . . . . 1 . . . . 1 . . . . . . 1 Fabricator Index 3 | . . . . . 1 . . . . 1 . . . . 1 . . . . . . . Garrison Index 1 | . . . . . . . . . . . . . . . 1 . . . . . . . Unreport Threat 16 | . 1 . 1 2 3 . . . . 2 . . . . 6 . . . . 1 . . Locate Traps 3 | . . . . . . . . . . . . . . . 2 . . . . . . 1 Recall Investigation 7 | . . . . . 3 . . . . 2 . . . . 1 . . . . . 1 . Recall Extermination 1 | . . . . . 1 . . . . . . . . . . . . . . . . . Hauler Manifests 2 | . . . 1 . . . . . . . . . . . 1 . . . . . . . Registered Components 6 | . 1 . 2 1 1 . . . . . . . . . 1 . . . . . . . Registered Prototypes 3 | . . . . . 1 . . . . . . . . . 2 . . . . . . . Zone Layout 2 | . . . . . 1 . . . . . . . . . 1 . . . . . . . Derelict Proto ID Bank 1 | . . 1 . . . . . . . . . . . . . . . . . . . . Fabricator Hacks 24 | . . . . 4 8 . . . . 10 . . . . 2 . . . . . . . Load Schematic 12 | . . . . 2 4 . . . . 5 . . . . 1 . . . . . . . Build 12 | . . . . 2 4 . . . . 5 . . . . 1 . . . . . . . Repair Station Hacks 7 | . . . 2 1 2 . . . . 2 . . . . . . . . . . . . Scan Component 4 | . . . 1 1 1 . . . . 1 . . . . . . . . . . . . Repair 3 | . . . 1 . 1 . . . . 1 . . . . . . . . . . . . Recycling Unit Hacks . | . . . . . . . . . . . . . . . . . . . . . . . Scanalyzer 11 | . . . 11 . . . . . . . . . . . . . . . . . . . Insert Component 5 | . . . 5 . . . . . . . . . . . . . . . . . . . Analyze 6 | . . . 6 . . . . . . . . . . . . . . . . . . . Garrison Access Hacks 11 | . . . 1 2 3 . . . . 2 . . . . 2 . . . . 1 . . Seal Access 11 | . . . 1 2 3 . . . . 2 . . . . 2 . . . . 1 . . Unauthorized Hacks 34 | . 11 . 4 4 2 . . . . 4 . . . . 4 . . . . 1 2 2 Terminals 34 | . 11 . 4 4 2 . . . . 4 . . . . 4 . . . . 1 2 2 Track 4 | . 3 . . . . . . . . . . . . . 1 . . . . . . . Assimilate 2 | . 1 . . 1 . . . . . . . . . . . . . . . . . . Botnet 26 | . 6 . 4 3 2 . . . . 3 . . . . 3 . . . . 1 2 2 Operators 2 | . 1 . . . . . . . . 1 . . . . . . . . . . . . Fabricators . | . . . . . . . . . . . . . . . . . . . . . . . Repair Stations . | . . . . . . . . . . . . . . . . . . . . . . . Recycling Units . | . . . . . . . . . . . . . . . . . . . . . . . Scanalyzers . | . . . . . . . . . . . . . . . . . . . . . . . Garrison Access . | . . . . . . . . . . . . . . . . . . . . . . . Data Cores Recovered 3 | . . . . . . . . . . 2 . . . . . . . . . 1 . . Used . | . . . . . . . . . . . . . . . . . . . . . . . Hacking Detections 88 | . 6 . 15 14 16 . . . . 17 . . . . 10 . . . . 4 3 3 Full Trace Events 22 | . . . . 4 6 . . . . 5 . . . . 2 . . . . 3 1 1 Feedback Events 2 | . . . . 2 . . . . . . . . . . . . . . . . . . Corruption 1 | . . . . 1 . . . . . . . . . . . . . . . . . . Hackware Fried 1 | . . . . 1 . . . . . . . . . . . . . . . . . . Feedback Blocked 1 | . . . . . 1 . . . . . . . . . . . . . . . . . Robot Schematics Acquired 4 | . . . . . . . . 4 . . . . . . . . . . . . . . Robots Built . | . . . . . . . . . . . . . . . . . . . . . . . Authchips . | . . . . . . . . . . . . . . . . . . . . . . . Time . | . . . . . . . . . . . . . . . . . . . . . . . Total Robot Build Rating . | . . . . . . . . . . . . . . . . . . . . . . . Part Schematics Acquired 27 | . . . 6 . 3 . . 11 . 1 . . 4 . 2 . . . . . . . Parts Built 14 | . . . . 4 4 . . . . 5 . . . . 1 . . . . . . . Authchips . | . . . . . . . . . . . . . . . . . . . . . . . Time 883 | . . . . 109 325 . . . . 373 . . . . 76 . . . . . . . Total Part Build Rating 64 | . . . . 12 20 . . . . 27 . . . . 5 . . . . . . . Parts Repaired 3 | . . . 1 . 1 . . . . 1 . . . . . . . . . . . . Time 116 | . . . 44 . 22 . . . . 50 . . . . . . . . . . . . Parts Recycled . | . . . . . . . . . . . . . . . . . . . . . . . Recycled Matter . | . . . . . . . . . . . . . . . . . . . . . . . Retrieved Matter . | . . . . . . . . . . . . . . . . . . . . . . . Retrieved Components . | . . . . . . . . . . . . . . . . . . . . . . . Parts Scanalyzed 5 | . . . 5 . . . . . . . . . . . . . . . . . . . Part Schematics Acquired 5 | . . . 5 . . . . . . . . . . . . . . . . . . . Parts Damaged 1 | . . . 1 . . . . . . . . . . . . . . . . . . . Bothacking | -11 -10 -10 -8 -7 -6 -6 -6 -6 -5 -5 -5 -5 -5 -4 -4 -4 -4 -4 -3 -3 -2 -1 ------------ Run | Yrd Mat Sub Mat Fac Fac Low Low Dat Pro Fac Upp Upp Zhi Pro Fac Upp Upp War Pro Res Res Acc Used RIF Installer . | . . . . . . . . . . . . . . . . . . . . . . . Robots Hacked . | . . . . . . . . . . . . . . . . . . . . . . . Non-combat . | . . . . . . . . . . . . . . . . . . . . . . . Combat . | . . . . . . . . . . . . . . . . . . . . . . . Robot Hacks Applied . | . . . . . . . . . . . . . . . . . . . . . . . Relay Couplers Released 4 | . . . . . . . . . . . . . . . . . . . . 3 1 . Machine Destruction 1 | . . . . . . . . . . . . . . . . . . . . . 1 . Programmers 3 | . . . . . . . . . . . . . . . . . . . . 3 . . Fabnet Peak Effective % . | . . . . . . . . . . . . . . . . . . . . . . . Robots Rewired . | . . . . . . . . . . . . . . . . . . . . . . . Allies Hacked . | . . . . . . . . . . . . . . . . . . . . . . . Hacks Repelled . | . . . . . . . . . . . . . . . . . . . . . . . Allies | -11 -10 -10 -8 -7 -6 -6 -6 -6 -5 -5 -5 -5 -5 -4 -4 -4 -4 -4 -3 -3 -2 -1 -------- Run | Yrd Mat Sub Mat Fac Fac Low Low Dat Pro Fac Upp Upp Zhi Pro Fac Upp Upp War Pro Res Res Acc Total Allies . | . . . . . . . . . . . . . . . . . . . . . . . Largest Group . | . . . . . . . . . . . . . . . . . . . . . . . Highest-Rated Group . | . . . . . . . . . . . . . . . . . . . . . . . Highest-Rated Ally . | . . . . . . . . . . . . . . . . . . . . . . . Total Orders . | . . . . . . . . . . . . . . . . . . . . . . . Ally Attacks . | . . . . . . . . . . . . . . . . . . . . . . . Total Damage . | . . . . . . . . . . . . . . . . . . . . . . . Kills . | . . . . . . . . . . . . . . . . . . . . . . . Allies Corrupted . | . . . . . . . . . . . . . . . . . . . . . . . Allies Melted 1 | . . . . . . . . . . . . . . . . 1 . . . . . . Intel | -11 -10 -10 -8 -7 -6 -6 -6 -6 -5 -5 -5 -5 -5 -4 -4 -4 -4 -4 -3 -3 -2 -1 ------- Run | Yrd Mat Sub Mat Fac Fac Low Low Dat Pro Fac Upp Upp Zhi Pro Fac Upp Upp War Pro Res Res Acc Robot Analysis Total 4 | . . . . . . . . . . . . . 4 . . . . . . . . . Derelict Logs Recovered 13 | . . 3 . . . . . . 1 . 3 1 . 2 . 2 1 . . . . . Drone Launches . | . . . . . . . . . . . . . . . . . . . . . . . Drone Recoveries . | . . . . . . . . . . . . . . . . . . . . . . . Exploration | -11 -10 -10 -8 -7 -6 -6 -6 -6 -5 -5 -5 -5 -5 -4 -4 -4 -4 -4 -3 -3 -2 -1 ------------- Run | Yrd Mat Sub Mat Fac Fac Low Low Dat Pro Fac Upp Upp Zhi Pro Fac Upp Upp War Pro Res Res Acc Turns Passed 12323 | 115 1272 1167 2088 958 1559 262 118 24 445 1524 57 70 54 59 579 97 133 176 121 588 739 118 Spaces Moved 18634 | 55 672 637 1156 1366 2875 553 384 78 466 2786 205 242 162 210 1461 296 504 596 450 1329 1851 300 Core 15 | 4 . . . . . . . . . 9 . . . 2 . . . . . . . . Treads 1403 | 51 672 637 43 . . . . . . . . . . . . . . . . . . . Legs 1437 | . . . 1113 324 . . . . . . . . . . . . . . . . . . Wheels . | . . . . . . . . . . . . . . . . . . . . . . . Hover . | . . . . . . . . . . . . . . . . . . . . . . . Flight 15779 | . . . . 1042 2875 553 384 78 466 2777 205 242 162 208 1461 296 504 596 450 1329 1851 300 Fastest Speed 12 | 50 160 160 113 26 24 30 30 30 24 14 26 14 26 14 14 14 26 24 16 12 20 19 Average Speed 44 | 152 160 160 122 52 29 30 30 30 29 26 26 23 26 25 25 24 26 25 23 26 23 22 Slowest Speed 240 | 160 160 240 240 189 109 105 30 30 30 150 26 26 26 150 26 26 26 26 24 97 25 23 Overloaded Moves 433 | . . . . . 51 . . . 26 94 . 51 . 30 85 44 . . 15 37 . . Propulsion Burnouts 1 | . . . . . . . . . . . . 1 . . . . . . . . . . Robots Hopped 96 | . . . . 8 22 4 . . . 21 . . . 1 4 2 . . 1 6 23 4 Cave-ins Triggered 4 | . . 1 . . 1 . . . 1 . . . . . 1 . . . . . . . Exploration Rate (%) 53 | 5 93 60 82 33 59 74 53 69 60 65 40 42 63 43 37 52 66 73 68 32 45 14 Regions Visited 22 Branch Regions 13 Pre-discovered Areas 5 | . . . . . . . . 1 . . . . 3 . . 1 . . . . . . Known Exits Taken 18 | . . . 1 1 1 1 1 1 1 1 1 1 1 1 1 1 1 1 1 1 . . Unknown Exits Taken 4 | 1 1 1 . . . . . . . . . . . . . . . . . . 1 . Scrap Searched 19 | . . 1 . . . 2 3 . 4 . 3 2 . . . 2 1 . 1 . . . Spaces Dug 318 | . . . 3 11 75 4 . . 31 40 . 35 . . 33 22 . 4 18 25 12 5 Terrain Destroyed 660 | . . 47 4 11 92 68 . . 52 40 . 54 . 14 33 81 . 4 51 72 32 5 Melee 212 | . . . 3 11 75 4 . . . 40 . . . . 33 . . 4 . 25 12 5 Projectile 1 | . . . 1 . . . . . . . . . . . . . . . . . . . AOE 447 | . . 47 . . 17 64 . . 52 . . 54 . 14 . 81 . . 51 47 20 . Terrain Rammed . | . . . . . . . . . . . . . . . . . . . . . . . Walls Destroyed . | . . . . . . . . . . . . . . . . . . . . . . . Machines Disabled . | . . . . . . . . . . . . . . . . . . . . . . . Actions | -11 -10 -10 -8 -7 -6 -6 -6 -6 -5 -5 -5 -5 -5 -4 -4 -4 -4 -4 -3 -3 -2 -1 --------- Run | Yrd Mat Sub Mat Fac Fac Low Low Dat Pro Fac Upp Upp Zhi Pro Fac Upp Upp War Pro Res Res Acc Total 21783 | 79 798 712 1614 1539 3379 630 386 77 769 3518 209 251 172 213 1629 311 505 611 460 1496 2091 334 Wait 2258 | 10 43 12 243 100 370 66 . . 296 650 . 2 . 2 121 8 . . 3 93 209 30 Move 18434 | 54 671 636 1155 1350 2832 544 383 77 464 2743 204 241 161 207 1452 291 503 595 447 1316 1817 291 Hop 80 | . . . . 7 20 4 . . . 21 . . . 1 4 2 . . 1 6 10 4 Pick Up 114 | 6 11 6 24 12 14 1 2 . . 10 2 . 2 . 5 . 1 3 1 5 9 . Fast Attach 89 | 7 6 1 20 5 11 2 . . . 6 . . 4 . 4 . . 2 . 13 8 . Attach 59 | . . 9 6 5 9 2 1 . 3 2 . 3 . 1 3 2 1 1 3 4 2 2 Detach 17 | . 1 1 1 1 1 1 . . 1 1 . 2 . 1 . 1 . . 2 3 . . Swap 59 | . 7 6 8 11 7 . . . 1 7 1 . 1 . . . . . . 4 4 2 Drop 134 | . 12 . 35 16 22 1 . . . 12 2 . 4 . 3 . . 2 . 12 13 . Fire 184 | 2 47 41 66 . 4 4 . . 3 . . 3 . 1 . 6 . . 3 3 1 . Melee 334 | . . . 55 32 89 5 . . . 48 . . . . 37 1 . 8 . 36 18 5 Ram 1 | . . . . . . . . . . . . . . . . . . . . 1 . . Kick 1 | . . . 1 . . . . . . . . . . . . . . . . . . . Crush . | . . . . . . . . . . . . . . . . . . . . . . . Escape Stasis 19 | . . . . . . . . . 1 18 . . . . . . . . . . . . Rewire . | . . . . . . . . . . . . . . . . . . . . . . . Trap . | . . . . . . . . . . . . . . . . . . . . . . . Miscellaneous . | . . . . . . . . . . . . . . . . . . . . . . . Route ------- -11/Scrapyard -10/Materials (discovered 5 exits: [*Mat x2] / *Min x2 / *Sub) -10/Subcaves -8/Materials (discovered 3 exits: *Fac x3) -7/Factory (discovered 5 exits: *Fac x4 / [*Low]) -6/Factory (discovered 6 exits: *Fac x4 / *Low x2) -6/Lower Caves -6/Lower Caves -6/Data Miner -5/Proximity Caves -5/Factory (discovered 8 exits: *Fac x4 / *Upp x2 / Ext x2) -5/Upper Caves -5/Upper Caves -5/Zhirov -4/Proximity Caves -4/Factory (discovered 7 exits: *Res x4 / *Upp x2 / Arm) -4/Upper Caves -4/Upper Caves -4/Warlord -3/Proximity Caves -3/Research (discovered 4 exits: *Res x2 / *Tes x2) -2/Research -1/Access To Epsilon Eridani History --------- Turn | Location | Event 31 | -11/Scrapyard | Discovered new exit (range 15) 116 | -11/Scrapyard | Entered Materials 209 | -10/Materials | Identified exit to Mines 316 | -10/Materials | Build established: Mutant 1130 | -10/Materials | Discovered new exit (range 5) 1233 | -10/Materials | Discovered new exit (range 16) 1372 | -10/Materials | Discovered new exit (range 10) 1388 | -10/Materials | Entered Subcaves 1424 | -10/Subcaves | Learned Materials terminal intel 1441 | -10/Subcaves | Learned 2 Materials zone layouts 1689 | -10/Subcaves | Learned Materials trap positions 1835 | -10/Subcaves | Core integrity fell below 50% 1861 | -10/Subcaves | Crushed by falling debris 1908 | -10/Subcaves | Visited Clippyterm 1913 | -10/Subcaves | Learned Factory fabricator intel 1913 | -10/Subcaves | Learned Factory stockpile data 2077 | -10/Subcaves | Visited 4L-MR0's lab 2092 | -10/Subcaves | Core integrity fell below 20% 2159 | -10/Subcaves | Found Rainbow Chip 2530 | -10/Subcaves | Discovered new exit (range 10) 2555 | -10/Subcaves | Entered Materials 2555 | -8/Materials | Evolved 4 slots: Propulsion x1, Utility x3 2557 | -8/Materials | Loaded intel: 6 trap records 2558 | -8/Materials | Loaded intel: 12 terminal locations 2668 | -8/Materials | Lost 3 parts (1n2w) 2752 | -8/Materials | Lost 3 parts (1p1n1w) 3017 | -8/Materials | Build established: Scavenger-Mutant 3351 | -8/Materials | Build established: Scavenger-Gladiator 3381 | -8/Materials | Discovered new exit (range 16) 3828 | -8/Materials | Repaired Greatsword 4125 | -8/Materials | Build established: Gladiator 4174 | -8/Materials | Identified exit to Factory 4643 | -8/Materials | Entered Factory 4643 | -7/Factory | Evolved 2 slots: Utility x2 4645 | -7/Factory | Loaded intel: 6 fabricator locations 4829 | -7/Factory | Attached Rainbow Chip, gained temporary slots: Power, Propulsion, Utility, Weapon 5050 | -7/Factory | Fabricated Cesium-ion Thruster (x2) 5116 | -7/Factory | Build established: Hacker-Gladiator 5198 | -7/Factory | Fabricated Cesium-ion Thruster (x2) 5249 | -7/Factory | Discovered new exit (range 9) 5332 | -7/Factory | Hacking Suite fried by hacking feedback 5423 | -7/Factory | Build established: Hacker-Sprinter 5440 | -7/Factory | Identified exit to Factory 5601 | -7/Factory | Entered another Factory area 5601 | -6/Factory | Evolved 2 slots: Utility x2 5649 | -6/Factory | Discovered new exit (range 15) 5681 | -6/Factory | Identified exit to Lower Caves 5740 | -6/Factory | Discovered new exit (range 12) 5765 | -6/Factory | Identified exit to Factory 5807 | -6/Factory | Repaired Greatsword 5899 | -6/Factory | Discovered exit to Lower Caves (range 15) 6077 | -6/Factory | Fabricated Adv. Sensor Array? 6233 | -6/Factory | Fabricated Cld. Cesium-ion Thruster? 6621 | -6/Factory | Spotted B-75 Beast 6823 | -6/Factory | Fabricated Cld. Cesium-ion Thruster? 6907 | -6/Factory | Fabricated Cld. Cesium-ion Thruster? 7059 | -6/Factory | Crushed by falling debris 7090 | -6/Factory | Lost 3 parts (2u1w) 7160 | -6/Factory | Entered Lower Caves 7172 | -6/Lower Caves | Encountered a Warlord checkpoint 7191 | -6/Lower Caves | Spotted B-75 Beast 7412 | -6/Lower Caves | Discovered new exit (range 15) 7421 | -6/Lower Caves | Identified exit to Lower Caves 7422 | -6/Lower Caves | Entered another Lower Caves area 7504 | -6/Lower Caves | Discovered new exit (range 8) 7506 | -6/Lower Caves | Identified exit to Data Miner 7540 | -6/Lower Caves | Entered Data Miner 7540 | -6/Data Miner | Discovered new exit (range 6) 7546 | -6/Data Miner | Met Data Miner 7552 | -6/Data Miner | Learned location of Section 7 (-2) 7552 | -6/Data Miner | Acquired the access code to Warlord's prototype stash 7557 | -6/Data Miner | Received God Mode back door access code from Data Miner 7563 | -6/Data Miner | Identified exit to Proximity Caves 7564 | -6/Data Miner | Entered Proximity Caves 7577 | -5/Proximity Caves | Learned Factory stockpile data 7869 | -5/Proximity Caves | Crushed by falling debris 8009 | -5/Proximity Caves | Discovered exit to Factory (range 3) 8009 | -5/Proximity Caves | Entered Factory 8009 | -5/Factory | Evolved 2 slots: Propulsion x1, Utility x1 8142 | -5/Factory | Build established: Sprinter 8276 | -5/Factory | Fabricated Hacking Suite? 8297 | -5/Factory | Repaired Adv. Sensor Array? 8351 | -5/Factory | Discovered new exit (range 22) 8355 | -5/Factory | Identified exit to Upper Caves 8355 | -5/Factory | Identified exit to Extension 8677 | -5/Factory | Fabricated Adv. Hacking Suite (x1) 8705 | -5/Factory | Spotted B-75 Beast 8850 | -5/Factory | Fabricated Adv. Hacking Suite? 8902 | -5/Factory | Fabricated Adv. Hacking Suite? 9065 | -5/Factory | Cargo convoy interrupted 9327 | -5/Factory | Fabricated Adv. Hacking Suite? 9341 | -5/Factory | Identified exit to Factory 9533 | -5/Factory | Entered Upper Caves 9533 | -5/Upper Caves | Spotted B-75 Beast 9534 | -5/Upper Caves | Encountered a Warlord checkpoint 9538 | -5/Upper Caves | Learned 4 Factory zone layouts 9565 | -5/Upper Caves | Learned location of 1 exit from Factory 9577 | -5/Upper Caves | Discovered new exit (range 5) 9585 | -5/Upper Caves | Learned location of 1 exit from Proximity Caves 9590 | -5/Upper Caves | Identified exit to Upper Caves 9590 | -5/Upper Caves | Entered another Upper Caves area 9604 | -5/Upper Caves | Spotted B-75 Beast 9650 | -5/Upper Caves | Ambushed by wild Derelicts 9655 | -5/Upper Caves | Attracted the attention of an 0b10 checkpoint 9659 | -5/Upper Caves | Discovered new exit (range 5) 9660 | -5/Upper Caves | Identified exit to Zhirov 9660 | -5/Upper Caves | Entered Zhirov 9660 | -5/Zhirov | Discovered new exit (range 4) 9676 | -5/Zhirov | Learned location of Quarantine (-2) 9676 | -5/Zhirov | Learned location of Testing (-3) 9676 | -5/Zhirov | Learned location of Command (-1) 9683 | -5/Zhirov | Found Alien Artifact 9683 | -5/Zhirov | Identified Integrated Reactor 9683 | -5/Zhirov | Installed Integrated Reactor, increased core energy generation (+10) 9690 | -5/Zhirov | Found Alien Artifact 9714 | -5/Zhirov | Identified exit to Proximity Caves 9714 | -5/Zhirov | Entered Proximity Caves 9750 | -4/Proximity Caves | Learned location of 1 exit from Research 9757 | -4/Proximity Caves | Learned Research security intel 9765 | -4/Proximity Caves | Attracted the attention of an 0b10 checkpoint 9773 | -4/Proximity Caves | Entered Factory 9773 | -4/Factory | Evolved 2 slots: Utility x2 9774 | -4/Factory | Identified exit to Armory 9785 | -4/Factory | Identified exit to Upper Caves 9785 | -4/Factory | Identified exit to Research 9893 | -4/Factory | Crushed by falling debris 10112 | -4/Factory | Fabricated Exp. Propulsion Shielding (x1) 10352 | -4/Factory | Entered Upper Caves 10375 | -4/Upper Caves | Encountered a Warlord checkpoint 10376 | -4/Upper Caves | Spotted B-86 Titan 10413 | -4/Upper Caves | Learned location of 1 exit from Research 10428 | -4/Upper Caves | Lost 3 allies 10448 | -4/Upper Caves | Discovered new exit (range 3) 10449 | -4/Upper Caves | Identified exit to Upper Caves 10449 | -4/Upper Caves | Entered another Upper Caves area 10450 | -4/Upper Caves | Identified exit to Warlord 10478 | -4/Upper Caves | Lost 3 parts (1p1u1w) 10502 | -4/Upper Caves | Learned 4 Research zone layouts 10527 | -4/Upper Caves | Build established: Hacker-Sprinter 10582 | -4/Upper Caves | Entered Warlord 10594 | -4/Warlord | System corruption cleaned by Quarantine Array 10708 | -4/Warlord | Met Warlord 10713 | -4/Warlord | Opened Warlord's prototype stash 10714 | -4/Warlord | Found Prototype Hackware 10714 | -4/Warlord | Identified Ghost Barrier 10726 | -4/Warlord | Warlord's base attacked by MAIN.C 10756 | -4/Warlord | Discovered new exit (range 9) 10758 | -4/Warlord | Identified exit to Proximity Caves 10758 | -4/Warlord | Entered Proximity Caves 10762 | -3/Proximity Caves | Spotted B-86 Titan 10877 | -3/Proximity Caves | Discovered exit to Research (range 9) 10879 | -3/Proximity Caves | Entered Research 10879 | -3/Research | Evolved 2 slots: Propulsion x1, Utility x1 10880 | -3/Research | Identified exit to Testing 10880 | -3/Research | Identified exit to Research 10930 | -3/Research | Discovered exit to Testing (range 7) 10980 | -3/Research | Found Prototype Processor 10980 | -3/Research | Identified Spectral Analyzer 10990 | -3/Research | Found Enh. Force Lance 11032 | -3/Research | Lost 3 parts (1p2u) 11036 | -3/Research | Found Prototype Protection 11036 | -3/Research | Identified Centrium Heavy Armor Plating 11454 | -3/Research | Discovered exit to Research (range 18) 11467 | -3/Research | Entered another Research area 11467 | -2/Research | Warlord forces began assault on 0b10 11467 | -2/Research | Evolved 2 slots: Propulsion x1, Utility x1 11565 | -2/Research | Met up with Warlord 11570 | -2/Research | Build established: Hacker-Ninja 11577 | -2/Research | Research machine network offline 11825 | -2/Research | Spotted B-90 Cyclops 11892 | -2/Research | Spotted B-90 Cyclops 11992 | -2/Research | Borebot progress halted 12019 | -2/Research | Spotted Striker 12023 | -2/Research | Spotted Striker 12043 | -2/Research | Found Prototype Slashing Weapon 12043 | -2/Research | Identified Particle Cleaver 12147 | -2/Research | Spotted Striker 12148 | -2/Research | Spotted Executioner 12149 | -2/Research | Borebot progress halted 12162 | -2/Research | Spotted Striker 12165 | -2/Research | Spotted Executioner 12176 | -2/Research | Spotted Executioner 12187 | -2/Research | Borebot progress halted 12198 | -2/Research | Discovered new exit (range 11) 12206 | -2/Research | Entered Access 12206 | -1/Access | Evolved 2 slots: Utility x2 12283 | -1/Access | Identified exit to Surface 12324 | *** | Escaped! Last Messages --------------- Found 4 traps in 1 array: 4x Alarm Trap Map updated. 12284_ K-01 Serf cleans the Terminal. 12286_ Connecting with Terminal... >>Trojan(Botnet) Trojan loaded successfully. Testing... Terminal linked with 1 system. Awaiting botnet instructions. >>Prototypes Downloading prototype IDs... Exp. Weapon Cycler Point Singularity Launcher Adv. Quantum Shading Machine Adv. Particle Accelerator 12322_ Connecting with Terminal... >>Open(Door) Sealed Barrier opened. 12323_ The Access Shell folds into the floor. Map ----- +----------------------------------------------------+ | + #####+##### """"""" #??????????????? | | ## #???# #???# """"" #??????????????? | | ?# #???# #???# """"""" #??????????????? | | ?# #???# #???# """"""" #??????????????? | | ?# #??## ##### """ """ #??????????????? | | ?######??# #??????????????? | | ?????????# #??????????????? | | ?????????######## #??????????????? | | ????????????????# #??????????????? | | ????????????????# #??????????????? | | ????????????????# #??????????????? | | ????????????????# #######????????? | | ????????????????# #????????? | | ????????????????# #????????? | | ????????????????###################### #????????? | | ?????????????????????????????????????# +????????? | | ?????????????????????????????????????# #????????? | | ?????????????????????????????????????# #????????? | | ?????????????????????????????????????# #????????? | | ?????????????????????????????###?????# #????????? | | ????????????????????########## ####### #????????? | | ????????????????????" k #????????? | | ??????????????BB????" #????????? | | ??????????????BB????" #????????? | | ????????????????????" #????????? | | ????????????????????" "@ #????????? | | ????????????????????" "" #????????? | | ????????????????????" #????????? | | ??????????????BB????" #????????? | | ??????????????BB????" """ """ #????????? | | ????????????????????" """T""" #????????? | | ????????????????????########## ####### #????????? | | ?????????????????????????????###?????# #????????? | | ?????????????????????????????????????? #????????? | | ?????????????????????????????????????? #????????? | | ?????????????????????????????????????? #????????? | | ?????????????????????????????????????? +????????? | | ?????????????????????????????????????? #????????? | | ?????????????????????????????????????? #????????? | | ?????????????????????????????????????? #????????? | | ?????????????????????????????????????? #????????? | | ?????????????????????????????????????? #????????? | | ?????????????????????????????????????? ?????????? | | ?????????????????????????????????????? ?????????? | | ?????????????????????????????????????????????????? | | ?????????????????????????????????????????????????? | | ?????????????????????????????????????????????????? | | ?????????????????????????????????????????????????? | | ?????????????????????????????????????????????????? | | ?????????????????????????????????????????????????? | +----------------------------------------------------+ Best States ------------- Heat Dissipation 71 Coolant Potential 50 Energy Generation 33 Energy Capacity 310 Matter Stores 300 Matter Capacity 300 Sight Range 24 Robot Scan Range 18 Terrain Scan Density 210 Jamming Range 16 Cloak Strength 3 Additional Mass Support 12 Corruption Containment 8 Armor Coverage 525 Propulsion Shielding 90 Utility Shielding 66 Evasion (%) 67 Targeting Accuracy 16 Melee Accuracy 12 Recoil Reduction 2 Offensive Hacking 56 Defensive Hacking 34 Item Schematics ----------------- Imp. Flight Unit | -8/Materials | Hacked Hacking Suite | -8/Materials | Scanalyzed Greatsword | -8/Materials | Scanalyzed Imp. Signal Interpreter | -8/Materials | Scanalyzed Adv. Weight Redist. System | -8/Materials | Scanalyzed Cesium-ion Thruster | -8/Materials | Scanalyzed Adv. Sensor Array | -6/Factory | Hacked Cld. Cesium-ion Thruster | -6/Factory | Hacked Hyp. Gauss Cannon | -6/Factory | Hacked Combat Drone Bay | -6/Data Miner | Free Lgt. Regenerative Plating | -6/Data Miner | Free Cld. Nuclear Pulse Thruster | -6/Data Miner | Free Prc. Matter Filter | -6/Data Miner | Free Imp. KE Penetrator | -6/Data Miner | Free Centrium Wheel | -6/Data Miner | Free Adv. Thermal Shield | -6/Data Miner | Free Hardcell Cannon | -6/Data Miner | Free Adv. Plasma Cannon | -6/Data Miner | Free Imp. Force Booster | -6/Data Miner | Free Biometal Leg | -6/Data Miner | Free Adv. Hacking Suite | -5/Factory | Hacked Assault Drone Bay | -5/Zhirov | Free Exp. Heat Sink | -5/Zhirov | Free Exp. Optical Array | -5/Zhirov | Free Imp. Arc Thrower | -5/Zhirov | Free Exp. Propulsion Shielding | -4/Factory | Hacked Mic. Antimatter Reactor | -4/Factory | Hacked Robot Schematics ------------------ M-22 Extractor | -6/Data Miner | Free E-15 Imp | -6/Data Miner | Free R-10 Processor | -6/Data Miner | Free L-41 Fighter | -6/Data Miner | Free Fabricated ------------ Cesium-ion Thruster | x2 | -7/Factory Cesium-ion Thruster | x2 | -7/Factory Adv. Sensor Array | x1 | -6/Factory Cld. Cesium-ion Thruster | x1 | -6/Factory Cld. Cesium-ion Thruster | x1 | -6/Factory Cld. Cesium-ion Thruster | x1 | -6/Factory Hacking Suite | x1 | -5/Factory Adv. Hacking Suite | x1 | -5/Factory Adv. Hacking Suite | x1 | -5/Factory Adv. Hacking Suite | x1 | -5/Factory Adv. Hacking Suite | x1 | -5/Factory Exp. Propulsion Shielding | x1 | -4/Factory Alien Tech Used ----------------- Integrated Reactor Achievements -------------- Close Call Quick And Dirty Challenges ------------ None Game ------ Seed SpacefoldRecoilPod Manual? 0 Play Time 04:47:43 Cumulative 27.9 hours Start 2024.04.30 @ 18:56:29 End 2024.05.01 @ 18:35:48 Sessions 1 Manual Loads 0 Difficulty Rogue Special Mode None Game No. 17 Rogue 17 Adventurer 0 Explorer 0 Win Type 0 Total 3 Types 3/0/0/0/0/0/0/0/0 Lore% 34 Gallery% 30 Achievement% 32 Wizard Run 0 Options --------- Layout 1 ASCII 1 Keyboard 0 Movement Vi Keybinds 0 Fullscreen 1 Font 18/SmallcapsGlow Map View 54x44 Zoom Use 0% Tactical HUD 1 Map Filters NONE Filters NONE Steam 0 RUN: 255fd0e7-733f-4b3b-92aa-6d7f91bc172d